bitfinex-derivatives/quotes_ETHF0:USTF0_20251021
["timestamp","ask_amount","ask_price","bid_price","bid_amount"]
[1761060344466,1.9874,4061.3,4060.5,0.44317]
[1761060344761,2.43051,4061.1,4060.4,5.75627]
[1761060345066,1.9874,4061.3,4060.4,3.2078]
[1761060345258,0.4432,4060.2,4059.8,3.2078]
[1761060345567,0.44321,4060.1,4059.9,0.30487462]
[1761060345755,2.43061,4060.1,4060.0,0.30487462]
[1761060345958,9.895,4060.8,4060.0,0.30487462]
[1761060345959,11.8824,4060.8,4060.0,0.30487462]
[1761060346158,0.44321,4060.2,4060.1,0.30487462]
[1761060346469,0.44319,4060.3,4060.1,0.30487462]
[1761060346660,0.44318,4060.4,4060.2,0.30487462]
[1761060346865,0.44318,4060.4,4060.1,0.44321]
[1761060347059,0.44318,4060.4,4060.2,0.30471511]
[1761060347259,11.8824,4060.8,4060.3,0.30471511]
[1761060347563,11.8824,4060.8,4060.1,2.1053]
[1761060347564,11.8694,4061.3,4061.1,0.44309]
[1761060347857,11.8694,4061.3,4060.7,2.54844]
[1761060347858,0.44312,4061.0,4060.7,2.54844]
[1761060348061,9.882,4061.3,4060.6,3.2078]
[1761060348062,0.4431,4061.2,4060.8,2.40992479]
[1761060348376,0.44314,4060.8,4060.6,3.2078]
[1761060348570,9.882,4061.3,4061.2,0.44309]
[1761060348865,11.8694,4061.3,4060.5,3.2078]
[1761060349057,3.2078,4061.1,4060.6,0.304707]
[1761060349261,3.2078,4061.1,4060.0,3.65101]
[1761060349262,1.9874,4060.7,4060.0,3.65101]
[1761060349467,0.4432,4060.3,4060.1,0.74799566]
[1761060349670,0.4432,4060.3,4060.2,0.30478566]
[1761060349857,2.4306,4060.3,4060.2,0.30478566]
[1761060350061,0.44323,4060.0,4059.4,3.2078]
[1761060350366,1.9874,4060.8,4059.9,5.3131]
[1761060350565,0.4432,4060.2,4060.0,0.30476049]
[1761060350866,1.9874,4060.8,4060.1,0.30476049]
[1761060351071,0.44317,4060.6,4060.4,0.44317]
[1761060351269,2.9512,4061.0,4060.2,0.44319]
[1761060351470,0.4432,4060.2,4060.0,0.44322]
[1761060351667,0.4432,4060.2,4060.1,0.3047039]
[1761060352367,0.44324,4059.9,4059.7,0.44325]
[1761060352672,2.52522,4060.0,4059.8,0.30479561]
[1761060352870,2.52522,4060.0,4059.9,0.30479561]
[1761060353270,2.5253,4059.3,4058.4,3.2078]
[1761060353566,2.5253,4059.3,4058.8,0.44335]
[1761060353769,2.5253,4059.3,4058.4,3.2078]
[1761060353770,2.082,4059.3,4059.1,0.19780844]
[1761060353964,0.44328,4059.5,4059.4,0.44328]
[1761060354178,2.52529,4059.4,4059.2,0.00252212]
[1761060355270,1.10811,4059.9,4059.2,0.00252212]
[1761060355271,2.082,4059.9,4059.2,0.00252212]
[1761060355461,2.52529,4059.4,4059.2,0.00252212]
[1761060355877,3.2078,4059.6,4059.2,2.13082212]
[1761060356070,0.44329,4059.4,4059.2,0.00252212]
[1761060356274,2.52529,4059.4,4059.2,0.00252212]
[1761060356673,10.28429,4059.4,4059.2,2.212e-05]
[1761060356979,2.52545,4058.0,4057.4,0.4435]
[1761060357165,2.082,4058.0,4057.3,3.2078]
[1761060357363,3.2078,4058.2,4057.3,3.2078]
[1761060357565,0.44345,4058.0,4057.3,3.2078]
[1761060357765,2.082,4058.1,4057.8,0.22773964]
[1761060357971,2.08511736,4058.1,4058.0,0.44344]
[1761060358270,0.00311736,4058.1,4058.0,2.57174]
[1761060358672,0.00311736,4058.1,4058.0,3.18334791]
[1761060358969,9.841,4059.3,4058.5,2.1283]
[1761060358970,2.082,4059.2,4058.5,2.1283]
[1761060359172,2.082,4058.7,4058.5,3.2078]
[1761060359568,2.082,4058.7,4058.5,0.44338]
[1761060359773,2.082,4058.6,4057.8,3.43861241]
[1761060359974,2.52538,4058.6,4058.2,0.44341]
[1761060360175,0.44343,4058.2,4057.9,0.44344]
[1761060360480,2.5254,4058.4,4058.0,0.44343]
[1761060360980,0.00298858,4058.7,4058.6,2.1283]
[1761060361971,0.00298858,4058.7,4058.6,7.1283]
[1761060362470,2.082,4060.6,4059.4,2.1283]
[1761060362776,2.082,4060.6,4060.4,0.44317]
[1761060362973,2.082,4061.0,4060.6,0.44315]
[1761060363274,2.082,4061.0,4060.8,0.44313]
[1761060363467,3.2078,4060.9,4060.8,0.00314543]
[1761060363666,2.082,4060.8,4058.9,3.2078]
[1761060363867,0.44332,4059.2,4059.0,0.61270374]
[1761060364070,3.2078,4059.6,4058.0,3.75102261]
[1761060364071,2.082,4058.5,4058.0,2.57174]
[1761060364270,0.8408,4059.0,4057.8,3.43437277]
[1761060364473,2.082,4059.6,4059.1,0.44332]
[1761060364677,0.44328,4059.5,4059.2,0.4433]
[1761060364874,2.082,4059.2,4059.1,0.00199809]
[1761060365073,2.082,4059.8,4059.1,0.00199809]
[1761060365274,2.082,4059.5,4059.2,0.302375]
[1761060365478,2.082,4059.5,4059.3,0.302375]
[1761060365680,2.082,4059.5,4059.1,0.00199809]
[1761060365976,2.082,4059.9,4059.7,0.44325]
[1761060366179,3.2078,4060.4,4059.3,0.44329]
[1761060366180,2.082,4059.6,4059.3,0.44329]
[1761060366472,0.44323,4060.0,4059.5,3.2078]
[1761060366680,0.44318,4060.4,4060.1,0.4432]
[1761060366878,2.082,4060.2,4059.6,3.2078]
[1761060367075,2.52524,4059.9,4059.7,0.30228107]
[1761060367269,2.082,4059.7,4059.1,3.20979809]
[1761060367470,2.52522,4060.1,4059.8,0.44324]
[1761060367670,2.082,4059.7,4059.6,3.2078]
[1761060368273,11.925,4060.3,4059.6,3.2078]
[1761060368473,0.44322,4060.1,4059.8,0.44324]
[1761060368672,2.52523,4060.0,4059.7,0.44325]
[1761060368874,0.44325,4059.8,4059.6,3.2078]
[1761060369170,2.52525,4059.8,4059.7,0.30238691]
[1761060369370,0.44325,4059.8,4059.7,0.30238691]
[1761060369779,2.082,4059.8,4059.7,0.30238691]
[1761060369975,0.44319,4060.3,4059.7,5.30238691]
[1761060370182,2.52518,4060.4,4060.2,0.44319]
[1761060370382,2.08431859,4061.0,4060.2,3.23631]
[1761060370578,0.00231859,4061.0,4060.9,0.44312]
[1761060370888,0.00231859,4061.0,4060.8,3.2078]
[1761060370889,0.00231859,4061.0,4060.8,3.65093]
[1761060371069,2.52743859,4061.0,4060.8,3.2078]
[1761060371268,2.52743859,4061.0,4060.2,3.2078]
[1761060371269,2.082,4060.5,4060.2,3.2078]
[1761060371473,0.44318,4060.4,4060.3,0.30252149]
[1761060371774,0.44318,4060.4,4060.3,0.30258225]
[1761060371981,0.44324,4059.9,4059.7,3.2078]
[1761060372177,0.44331,4059.2,4059.1,3.20979809]
[1761060372482,2.52531,4059.2,4059.1,0.00199809]
[1761060372675,0.44345,4057.9,4057.8,0.0246439]
[1761060372875,2.52545,4057.9,4057.8,0.32766829]
[1761060373076,2.082,4057.9,4057.8,0.32766829]
[1761060373478,2.082,4058.1,4057.8,3.6758939]
[1761060373678,9.841,4058.6,4057.8,3.23485175]
[1761060373876,0.4434,4058.4,4058.3,3.2078]
[1761060374073,12.36638,4058.6,4058.3,3.2078]
[1761060374275,2.082,4058.5,4058.3,3.6512]
[1761060374475,9.841,4058.6,4058.5,0.44339]
[1761060374680,0.44334,4058.9,4058.5,0.44339]
[1761060374681,0.44336,4058.8,4058.5,0.44339]
[1761060374885,0.44334,4058.9,4058.6,0.44337]
[1761060375075,2.082,4058.8,4058.4,0.44339]
[1761060375275,2.08486794,4058.8,4058.4,0.44633271]
[1761060375471,2.082,4058.7,4058.5,0.44338]
[1761060375674,0.00286794,4058.8,4058.7,0.44336]
[1761060375882,0.00286794,4058.8,4058.5,0.44338]
[1761060376086,0.44338,4058.6,4058.4,0.00294271]
[1761060376274,2.082,4058.5,4058.4,0.00294271]
[1761060376678,0.00286794,4058.8,4058.7,0.44336]
[1761060377082,0.44336,4058.7,4058.4,2.57463271]
[1761060377288,2.082,4058.5,4058.4,0.00294271]
[1761060378081,2.52537,4058.7,4058.4,0.44633271]
[1761060378391,1.8966,4058.6,4058.4,0.00294271]
[1761060378779,2.33998,4058.6,4058.4,0.00294271]
[1761060380491,12.17998,4058.6,4058.4,0.00294271]
[1761060380690,1.9896,4058.5,4058.4,0.00294271]
[1761060380887,1.9896,4057.8,4057.3,3.2078]
[1761060381092,0.44354,4057.1,4056.9,0.44356]
[1761060381281,2.43314,4057.1,4057.0,0.61400237]
[1761060381582,1.9896,4057.1,4057.0,0.19679266]
[1761060381888,1.9896,4056.7,4055.6,3.2078]
[1761060382091,2.43329,4055.7,4055.6,0.00228141]
[1761060382290,5.64358122,4055.7,4055.6,0.00228141]
[1761060383295,15.03989122,4055.7,4055.6,0.00228141]
[1761060383796,0.00249122,4055.7,4055.6,0.44598141]
[1761060383981,1.9896,4056.7,4056.2,0.44363]
[1761060384182,1.9896,4056.5,4055.6,5.12698141]
[1761060384383,1.9896,4056.5,4055.6,3.21008141]
[1761060384579,1.9896,4056.5,4056.3,0.44362]
[1761060384780,1.9896,4056.5,4055.6,5.12698141]
[1761060384781,2.7217,4057.2,4057.0,0.44354]
[1761060384992,1.99141771,4057.2,4057.0,0.44354]
[1761060385388,0.00181771,4057.2,4057.0,0.44354]
[1761060385589,0.00181771,4057.2,4057.0,5.56824]
[1761060385790,1.9896,4057.1,4057.0,3.65134]
[1761060385982,1.9896,4057.1,4056.9,0.44356]
[1761060386793,0.7321,4057.0,4056.0,3.2078]
[1761060386981,1.9896,4056.2,4056.0,3.65146]
[1761060387484,0.7321,4057.0,4056.8,0.44357]
[1761060387684,1.9896,4057.1,4056.6,3.2078]
[1761060387889,1.9896,4056.8,4056.6,3.2078]
[1761060388188,0.00181771,4057.2,4056.6,3.2078]
[1761060388189,1.9896,4057.1,4056.9,0.44356]
[1761060388394,0.44534771,4057.2,4056.6,3.2078]
[1761060388395,0.00181771,4057.2,4057.0,2.36044]
[1761060388594,1.99141771,4057.2,4057.0,0.44354]
[1761060389097,1.99141771,4057.2,4056.8,0.44356]
[1761060389391,1.99141771,4057.2,4056.6,3.65139]
[1761060389392,1.9896,4056.8,4056.6,3.65139]
[1761060389591,1.9896,4057.1,4056.9,0.44355]
[1761060389996,1.9896,4057.1,4056.7,0.44358]
[1761060390191,1.9896,4057.1,4055.9,3.2078]
[1761060390192,1.9896,4056.7,4055.9,3.2078]
[1761060390499,1.9896,4056.7,4056.2,0.44363]
[1761060390500,1.9896,4056.6,4056.2,0.44363]
[1761060390692,1.9896,4056.6,4056.4,0.44361]
[1761060391598,2.4332,4056.6,4055.9,3.2078]
[1761060391799,2.4332,4056.6,4056.3,0.44362]
[1761060392000,1.9896,4056.6,4055.9,3.2078]
[1761060392196,1.9896,4056.6,4056.5,0.4436]
[1761060392399,2.4332,4056.6,4056.3,0.44362]
[1761060392591,0.44362,4056.4,4055.9,3.2078]
[1761060392899,1.9896,4056.6,4056.0,0.44365]
[1761060393091,9.84,4056.7,4056.0,0.44365]
[1761060393092,1.9896,4056.2,4056.0,0.44365]
[1761060394400,2.43326,4056.0,4055.9,3.2078]
[1761060394695,2.43329,4055.8,4055.6,0.00228141]
[1761060394899,0.44364,4056.2,4055.6,1.91918141]
[1761060395101,1.9896,4056.3,4056.1,0.44364]
[1761060395302,2.43323,4056.3,4056.1,0.44364]
[1761060395503,1.9896,4056.3,4056.1,0.44364]
[1761060396504,1.9896,4056.0,4055.9,3.2078]
[1761060397205,2.43328,4055.8,4055.7,0.44369]
[1761060397405,2.43328,4055.8,4055.6,0.00228141]
[1761060398100,10.94715,4056.1,4055.6,0.00228141]
[1761060398101,12.27125,4056.1,4055.9,0.44366]
[1761060398302,1.9896,4056.2,4055.8,0.44368]
[1761060398599,0.44369,4055.8,4055.6,0.44597141]
[1761060398800,1.9896,4055.7,4055.6,0.00228141]
[1761060400104,1.9896,4056.2,4056.0,0.44365]
[1761060400398,9.838,4056.3,4056.2,0.44364]
[1761060400606,1.9896,4056.2,4055.8,3.2078]
[1761060400802,1.9896,4055.9,4055.6,0.00228141]
[1761060401005,2.43327,4055.9,4055.7,0.44369]
[1761060401202,2.43327,4055.9,4055.6,0.00228141]
[1761060401203,1.9896,4055.9,4055.8,0.44368]
[1761060402305,2.43326,4056.0,4055.9,0.44367]
[1761060402504,2.43326,4056.0,4055.6,0.00228141]
[1761060402505,1.9896,4055.8,4055.7,0.44369]
[1761060403107,2.43328,4055.8,4055.7,0.44369]
[1761060403603,2.43329,4055.7,4055.6,0.00228141]
[1761060404003,12.26829,4055.7,4055.6,0.00228141]
[1761060404506,2.43337,4055.0,4054.9,0.20422198]
[1761060404699,1.9896,4054.4,4054.3,3.2078]
[1761060404900,3.2078,4055.8,4054.4,2.21917]
[1761060405107,1.9896,4055.3,4055.2,0.44374]
[1761060405504,1.10909,4056.3,4055.7,1.9169]
[1761060405505,1.9896,4056.3,4055.7,1.9169]
[1761060405700,1.9896,4056.1,4056.0,0.44366]
[1761060406417,1.9896,4055.8,4055.5,3.2078]
[1761060406608,2.43334,4055.3,4055.2,0.0018419]
[1761060406906,3.2078,4056.2,4055.2,1.9187419]
[1761060407106,0.44365,4056.1,4055.6,3.2078]
[1761060407306,1.9896,4056.0,4055.6,3.2078]
[1761060407501,1.9896,4056.0,4055.8,0.44367]
[1761060407910,0.44366,4056.0,4055.9,0.44367]
[1761060408414,1.9896,4056.0,4055.9,0.44367]
[1761060409107,2.43326,4056.0,4055.9,0.44366]
[1761060409309,2.43329,4055.8,4055.7,0.44368]
[1761060409507,1.9896,4055.8,4055.7,0.44368]
[1761060409712,1.9896,4056.0,4055.6,5.1247]
[1761060410113,1.9896,4056.5,4055.7,1.9169]
[1761060410413,1.9896,4056.1,4056.0,0.44366]
[1761060410618,10.86275,4056.8,4055.8,0.44367]
[1761060410619,1.6411,4055.9,4055.8,0.44367]
[1761060410814,1.6411,4055.7,4055.6,3.2078]
[1761060411004,1.6411,4055.7,4055.6,3.82332758]
[1761060411317,1.6411,4055.6,4055.5,0.44371]
[1761060411613,1.6411,4055.6,4055.5,0.6159578]
[1761060412515,3.2078,4056.4,4055.5,8.8237578]
[1761060412712,3.2078,4056.4,4055.6,0.6159578]
[1761060412911,3.65142,4056.4,4056.2,0.44363]
[1761060413116,1.6411,4056.3,4056.1,0.44364]
[1761060413316,1.6411,4056.2,4055.5,6.6710851]
[1761060413610,2.08475,4056.1,4056.0,0.44365]
[1761060413811,2.08477,4055.9,4055.8,0.44368]
[1761060414113,1.6411,4055.9,4055.8,1.05989097]
[1761060414710,0.44368,4055.8,4055.6,0.44369]
[1761060415012,1.6411,4055.7,4055.6,0.44369]
[1761060415215,1.6411,4055.7,4055.6,1.05982125]
[1761060416216,1.6411,4055.7,4055.6,0.61613125]
[1761060416416,2.08482,4055.4,4055.2,0.0018419]
[1761060416610,1.6411,4055.3,4055.2,0.4455819]
[1761060416811,1.6411,4055.3,4055.2,1.06203535]
[1761060417119,1.6411,4055.3,4055.2,0.61829535]
[1761060417315,1.6411,4055.3,4055.2,0.0018419]
[1761060417621,1.6411,4055.3,4055.2,0.61821732]
[1761060418819,1.6411,4055.3,4055.2,1.06196732]
[1761060419316,2.08484,4055.3,4055.2,0.61821732]
[1761060420412,1.6411,4055.9,4055.2,2.79696732]
[1761060420611,1.10904,4056.5,4056.4,0.44361]
[1761060420612,1.6411,4056.5,4056.4,0.44361]
[1761060420811,0.7321,4057.0,4056.7,0.44358]
[1761060421014,0.44535771,4057.2,4056.6,3.2078]
[1761060421220,0.44535771,4057.2,4057.0,0.44354]
[1761060422019,2.92890557,4058.0,4057.3,1.735]
[1761060422216,2.80463078,4058.0,4057.5,1.735]
[1761060422413,4.757,4058.9,4058.2,1.735]
[1761060422719,1.6411,4058.5,4058.1,3.65123]
[1761060422919,0.00174995,4058.5,4058.4,1.735]
[1761060423624,1.64284995,4058.5,4058.1,5.38829932]
[1761060423814,0.4434,4058.4,4058.2,2.17841]
[1761060424011,0.4434,4058.4,4058.1,3.20987932]
[1761060424012,1.6411,4058.2,4058.1,0.00207932]
[1761060424321,4.8489,4058.2,4058.1,0.00207932]
[1761060424724,0.44354,4057.1,4057.0,0.1960921]
[1761060424917,1.6411,4057.3,4056.6,0.44358]
[1761060425110,10.92861,4058.0,4056.4,0.19948833]
[1761060425111,0.4436,4056.5,4056.4,0.19948833]
[1761060425424,4.31671,4056.9,4055.6,0.19752884]
[1761060425425,0.44368,4055.8,4055.6,0.19752884]
[1761060425622,0.44378,4054.9,4054.6,2.17881]
[1761060425817,1.6411,4054.8,4054.4,3.8268151]
[1761060426126,1.6411,4054.3,4053.9,2.17888]
[1761060426315,0.00311096,4054.9,4053.9,1.93944203]
[1761060426519,0.00311096,4054.9,4054.8,1.735]
[1761060427721,0.00311096,4054.9,4054.8,6.735]
[1761060427922,3.65144,4056.2,4055.0,1.735]
[1761060428114,3.65144,4056.2,4055.8,0.44367]
[1761060428315,1.6411,4056.1,4055.8,0.44367]
[1761060428518,1.6411,4056.6,4056.1,1.735]
[1761060428822,1.64375337,4056.6,4056.0,3.2078]
[1761060429016,0.44361,4056.5,4056.1,1.735]
[1761060429212,1.64375337,4056.6,4056.2,0.44363]
[1761060429423,0.00265337,4056.6,4056.4,1.735]
[1761060429622,0.00265337,4056.6,4056.4,1.93601503]
[1761060429825,1.6411,4056.5,4056.4,0.20101503]
[1761060430027,2.08471,4056.4,4056.0,5.38645]
[1761060430219,2.08473,4056.3,4056.0,5.38645]
[1761060430425,1.6411,4056.1,4056.0,0.19849509]
[1761060430723,0.44363,4056.3,4055.7,1.735]
[1761060430928,1.6411,4056.4,4055.5,5.144835]
[1761060431122,1.6411,4055.6,4055.5,0.202035]
[1761060431319,1.6411,4055.6,4055.1,0.44375]
[1761060431320,3.2078,4055.6,4054.5,0.6190151]
[1761060431520,0.44381,4054.7,4054.4,0.44383]
[1761060431823,0.44381,4054.7,4054.4,0.64822495]
[1761060432020,1.6411,4054.8,4054.5,3.65162]
[1761060432225,0.44377,4055.0,4054.7,0.44379]
[1761060432418,0.44374,4055.3,4055.0,0.44376]
[1761060432614,3.65147,4056.0,4055.5,1.735]
[1761060432814,1.6411,4055.9,4055.1,1.735]
[1761060433016,1.6411,4055.9,4055.0,4.9428]
[1761060433224,0.44368,4055.8,4055.1,1.735]
[1761060433418,0.44367,4055.9,4055.1,1.735]
[1761060433624,0.44368,4055.8,4055.6,2.1787]
[1761060433816,0.44368,4055.8,4055.6,1.735]
[1761060434013,3.2078,4056.0,4055.0,3.65156]
[1761060434014,1.6411,4055.9,4055.0,3.65156]
[1761060434216,3.2078,4056.0,4055.4,0.44372]
[1761060434620,3.2078,4056.0,4055.5,1.735]
[1761060434815,4.8489,4056.0,4055.6,1.735]
[1761060435022,3.2078,4056.0,4055.8,1.735]
[1761060435218,1.6411,4055.9,4055.5,3.2078]
[1761060435423,0.44374,4055.3,4055.0,0.44377]
[1761060435622,2.08486,4055.1,4054.9,3.2078]
[1761060435822,2.08486,4055.1,4054.9,3.65157]
[1761060436034,3.2078,4056.0,4055.2,0.44374]
[1761060436220,0.44372,4055.5,4055.2,0.44374]
[1761060436525,1.6411,4055.9,4054.9,3.2078]
[1761060436727,1.6411,4055.6,4054.9,3.65158]
[1761060436929,2.08486,4055.1,4054.9,3.65158]
[1761060437131,1.6411,4055.1,4054.9,3.65158]
[1761060437325,0.44373,4055.4,4055.3,1.735]
[1761060437527,2.08486,4055.1,4054.9,3.2078]
[1761060437722,1.6411,4055.1,4054.9,0.44377]
[1761060437922,1.10919,4055.9,4054.8,1.735]
[1761060437923,0.44372,4055.5,4055.3,0.44373]
[1761060438229,0.44372,4055.5,4053.4,0.82551985]
[1761060438230,3.2078,4054.4,4053.4,0.82551985]
[1761060438429,0.44394,4053.4,4053.0,1.735]
[1761060438619,0.44396,4053.3,4052.9,1.735]
[1761060438825,0.44398,4053.1,4052.9,1.735]
[1761060439024,3.2078,4053.0,4052.9,1.735]
[1761060439334,0.444,4052.9,4052.8,1.7596743]
[1761060439534,0.444,4052.9,4052.8,1.76142024]
[1761060439929,3.21086826,4053.0,4052.8,1.76142024]
[1761060440326,3.21086826,4053.0,4052.9,1.735]
[1761060440628,3.21086826,4053.0,4052.8,0.47043024]
[1761060440629,0.444,4052.9,4052.8,0.02642024]
[1761060440933,3.65485826,4053.0,4052.8,1.81172024]
[1761060441130,3.65485826,4053.0,4052.8,0.02642024]
[1761060441433,3.65485826,4053.0,4052.8,1.72492024]
[1761060441629,3.65485826,4053.0,4052.8,0.02642024]
[1761060441836,3.65485826,4053.0,4052.8,1.72492024]
[1761060443233,3.65485826,4053.0,4052.8,0.02642024]
[1761060443831,3.65485826,4053.0,4052.8,1.72492024]
[1761060445533,1.79607667,4055.9,4052.9,6.6985]
[1761060445534,3.2078,4053.6,4052.9,6.6985]
[1761060445737,3.2078,4053.6,4053.5,1.6985]
[1761060446431,0.444,4053.0,4052.9,1.6985]
[1761060446636,3.65360767,4053.0,4052.9,1.6985]
[1761060447431,3.65360767,4053.0,4052.8,0.02642024]
[1761060447633,3.65360767,4053.0,4052.8,1.72492024]
[1761060448339,3.20960767,4053.0,4052.8,1.72492024]
[1761060448527,3.65360767,4053.0,4052.8,1.72492024]
[1761060450333,3.65360767,4053.0,4052.8,0.02642024]
[1761060450730,3.65360767,4053.0,4052.8,1.72492024]
[1761060450931,3.65360767,4053.0,4052.9,1.6985]
[1761060453130,0.44403,4052.6,4052.4,0.44405]
[1761060453332,3.20960767,4053.0,4052.2,0.44407]
[1761060453333,3.65185,4052.5,4052.2,0.44407]
[1761060453532,0.44405,4052.4,4052.2,0.44407]
[1761060454039,3.2078,4052.5,4052.4,0.44405]
[1761060455137,3.2078,4052.5,4052.2,0.00275206]
[1761060455138,0.44405,4052.4,4052.2,1.70125206]
[1761060455633,3.2078,4052.5,4052.4,1.6985]
[1761060457228,3.65184,4052.5,4052.4,1.6985]
[1761060458142,0.44406,4052.3,4052.2,1.70125206]
[1761060458945,0.44406,4052.3,4052.2,0.00275206]
[1761060459140,0.44406,4052.3,4052.2,1.70125206]
[1761060459444,3.2078,4052.5,4052.3,1.6985]
[1761060460143,3.2078,4052.5,4052.4,2.14255]
[1761060460532,0.44401,4052.8,4052.4,1.6985]
[1761060460739,0.44402,4052.7,4052.4,1.6985]
[1761060460943,0.44403,4052.6,4052.5,2.14254]
[1761060461344,0.444,4052.9,4052.8,2.14251]
[1761060461651,0.00180767,4053.0,4052.9,2.1425]
[1761060461837,7.67e-06,4053.0,4052.9,7.1425]
[1761060462235,7.67e-06,4053.0,4052.9,7.74864978]
[1761060462440,7.67e-06,4053.0,4052.9,10.91122333]
[1761060462936,3.10986269,4054.5,4054.4,0.6669]
[1761060463236,3.10986269,4054.5,4054.4,2.3654]
[1761060463846,0.00176345,4054.5,4054.4,7.3654]
[1761060464144,3.2078,4055.0,4054.9,2.14228]
[1761060464347,0.00802,4055.1,4055.0,1.6985]
[1761060464941,0.01071721,4055.1,4055.0,1.6985]
[1761060465143,0.44377,4055.0,4054.9,0.20002528]
[1761060465335,3.65157,4055.0,4054.9,1.6985]
[1761060465533,0.01071721,4055.1,4055.0,0.44377]
[1761060465733,0.01071721,4055.1,4055.0,1.6985]
[1761060465943,0.45448721,4055.1,4055.0,1.6985]
[1761060466339,0.44381,4054.6,4054.5,1.6985]
[1761060466641,0.4438,4054.7,4054.5,1.90219227]
[1761060467042,1.8013,4054.6,4054.5,0.20369227]
[1761060467342,0.44382,4054.6,4053.8,1.6985]
[1761060467546,3.65159,4054.8,4054.7,1.6985]
[1761060468348,3.65159,4054.8,4054.4,0.44383]
[1761060468349,0.44381,4054.7,4054.4,0.44383]
[1761060468642,1.8013,4054.0,4053.9,0.20167274]
[1761060468844,3.2078,4054.0,4052.9,4.3178]
[1761060469047,3.65168,4054.0,4053.8,0.44389]
[1761060469239,3.65168,4054.0,4053.9,1.6985]
[1761060469639,0.44391,4053.7,4053.6,0.6669]
[1761060469839,0.4439,4053.9,4053.6,0.6669]
[1761060470039,3.2078,4054.0,4053.6,0.6669]
[1761060470245,0.44391,4053.7,4053.6,2.3654]
[1761060470651,3.2078,4054.0,4053.9,1.6675]
[1761060471139,0.44398,4053.1,4052.9,0.20337234]
[1761060471339,0.44403,4052.7,4052.6,1.6675]
[1761060471544,0.44398,4053.1,4052.8,1.6675]
[1761060471752,0.44399,4053.0,4052.8,1.6675]
[1761060471954,0.444,4053.0,4052.8,1.86943268]
[1761060472253,0.44405,4052.4,4052.2,1.67025206]
[1761060472554,3.65185,4052.4,4052.2,1.67025206]
[1761060472753,3.65185,4052.4,4052.2,0.00275206]
[1761060472953,3.65185,4052.4,4052.2,0.20546003]
[1761060473155,3.2078,4052.4,4052.3,1.6675]
[1761060473456,43.01902,4054.8,4053.3,2.11145]
[1761060473457,3.2078,4053.4,4053.3,2.11145]
[1761060473850,3.2078,4053.4,4053.3,1.6675]
[1761060474045,3.2078,4053.4,4052.9,0.44399]
[1761060474352,3.2078,4053.4,4052.9,1.6675]
[1761060474552,3.2078,4053.4,4053.3,1.6675]
[1761060475054,3.65174,4053.4,4053.3,1.6675]
[1761060475242,3.2078,4053.4,4053.3,1.6675]
[1761060476546,0.4439,4053.9,4053.7,1.6675]
[1761060476750,4.8662,4054.5,4053.9,1.6675]
[1761060476948,0.44385,4054.3,4054.1,1.6675]
[1761060477149,3.2078,4054.5,4054.2,1.6675]
[1761060477456,3.65163,4054.5,4054.3,1.6675]
[1761060478048,3.65163,4054.5,4054.4,1.6675]
[1761060478249,3.2078,4054.5,4054.4,2.3522]
[1761060478548,3.21628,4054.5,4054.4,2.3522]
[1761060479255,0.00848,4054.5,4054.4,2.3522]
[1761060479649,3.2078,4055.0,4054.4,2.3522]
[1761060479955,3.2078,4055.0,4054.9,1.6675]
[1761060480150,3.2078,4055.0,4054.8,0.44379]
[1761060480354,3.2078,4055.0,4054.9,1.6675]
[1761060480653,3.2078,4056.5,4055.5,1.6675]
[1761060480860,3.2078,4056.5,4056.4,1.6675]
[1761060481154,3.2078,4056.5,4056.4,0.20358811]
[1761060481350,3.2078,4056.5,4056.3,0.44362]
[1761060481546,3.2078,4057.0,4056.7,0.44358]
[1761060481746,3.2078,4057.0,4056.8,1.6675]
[1761060481949,0.00215425,4057.0,4056.8,1.6675]
[1761060482150,0.00215425,4057.0,4056.8,2.11107]
[1761060482349,0.00215425,4057.0,4056.9,1.6675]
[1761060483559,1.66055425,4057.0,4056.3,0.00234284]
[1761060483857,0.44371,4055.6,4055.3,1.6675]
[1761060484051,3.2078,4056.6,4054.8,1.6675]
[1761060484052,3.2078,4055.7,4054.8,1.6675]
[1761060484249,0.44371,4055.6,4055.1,0.44375]
[1761060484446,3.2078,4056.4,4055.2,0.6847]
[1761060484646,3.2078,4056.4,4055.9,1.6675]
[1761060485053,3.65142,4056.4,4056.1,1.6675]
[1761060485254,3.2078,4056.4,4056.1,0.44364]
[1761060485459,0.44359,4056.6,4056.0,3.2078]
[1761060485648,0.44357,4056.8,4056.4,1.6675]
[1761060486360,3.2078,4056.9,4056.6,1.6675]
[1761060486563,3.65137,4056.9,4056.7,1.6675]
[1761060486750,0.44358,4056.7,4056.3,1.6675]
[1761060487055,3.2078,4056.9,4056.4,1.6675]
[1761060487256,0.00215425,4057.0,4056.3,0.6847]
[1761060487558,3.2298,4057.8,4057.3,0.44351]
[1761060487754,3.2298,4057.8,4057.4,1.6675]
[1761060487755,0.022,4057.8,4057.4,1.6675]
[1761060488058,0.46547,4057.8,4057.4,2.111]
[1761060488246,0.022,4057.8,4057.7,1.6675]
[1761060488745,0.02502662,4057.8,4057.7,1.6675]
[1761060490967,0.02502662,4057.8,4057.7,4.8753]
[1761060491753,0.41835338,4058.6,4058.4,1.6675]
[1761060492060,3.65116,4058.8,4058.4,2.11089]
[1761060492247,0.44341,4058.3,4058.0,1.6675]
[1761060492451,0.44339,4058.5,4058.0,1.6675]
[1761060492852,0.00218702,4058.5,4058.4,1.6675]
[1761060493758,0.00218702,4058.5,4058.4,0.36517896]
[1761060493955,0.44341,4058.3,4057.9,1.6675]
[1761060494156,3.2078,4058.3,4058.2,1.6675]
[1761060494350,3.2078,4058.3,4058.1,0.44342]